bitfinex/quotes_BTCUSD_20251021
["timestamp","ask_amount","ask_price","bid_price","bid_amount"]
[1761005258578,3.26440115,110570.0,110560.0,0.16230831]
[1761005260515,3.60440115,110570.0,110560.0,0.16230831]
[1761005261462,3.60568547,110570.0,110560.0,0.16230831]
[1761005261794,3.5789505,110570.0,110560.0,0.16230831]
[1761005262203,3.5789505,110570.0,110560.0,0.14630831]
[1761005269268,3.5789505,110570.0,110560.0,0.12330831]
[1761005270593,3.56208701,110570.0,110560.0,0.12330831]
[1761005271575,3.57896699,110570.0,110560.0,0.12330831]
[1761005275590,3.60570352,110570.0,110560.0,0.12330831]
[1761005276400,3.60570352,110570.0,110560.0,0.10230831]
[1761005281088,0.39808611,110570.0,110560.0,0.28320556]
[1761005281860,0.05650964,110570.0,110560.0,0.28320556]
[1761005282214,0.03762966,110570.0,110560.0,0.28320556]
[1761005282656,3.0,110590.0,110580.0,0.18086453]
[1761005282861,3.01687176,110590.0,110580.0,0.18086453]
[1761005283063,0.35687176,110590.0,110580.0,0.18086453]
[1761005283463,0.35687176,110590.0,110580.0,0.16286453]
[1761005283676,0.38747404,110590.0,110580.0,0.16286453]
[1761005284222,0.34,110580.0,110570.0,0.29574968]
[1761005284429,0.34,110580.0,110570.0,0.31865299]
[1761005286856,0.34,110580.0,110570.0,0.29574968]
[1761005290365,0.34,110580.0,110570.0,0.29576088]
[1761005290568,0.34,110580.0,110570.0,0.26676088]
[1761005292242,0.36673653,110580.0,110570.0,0.26676088]
[1761005292684,0.36673653,110580.0,110570.0,0.18088088]
[1761005293163,0.36673653,110580.0,110570.0,0.21301969]
[1761005293331,0.36673653,110580.0,110570.0,0.18088088]
[1761005294051,0.03060228,110590.0,110580.0,0.18086453]
[1761005294399,0.03196297,110590.0,110580.0,0.18086453]
[1761005294625,0.02260602,110590.0,110580.0,0.18086453]
[1761005297610,0.02260602,110590.0,110580.0,0.14786453]
[1761005297816,0.02260602,110590.0,110580.0,0.18086453]
[1761005298016,0.07774796,110590.0,110570.0,0.18992492]
[1761005298213,0.34,110580.0,110570.0,0.30464492]
[1761005298986,0.34,110580.0,110570.0,0.18992492]
[1761005299223,0.52086709,110580.0,110560.0,0.40697042]
[1761005299426,0.34,110580.0,110560.0,0.46577867]
[1761005299780,0.34,110580.0,110570.0,0.18088088]
[1761005300802,0.34,110580.0,110560.0,0.40697042]
[1761005301003,0.54422854,110580.0,110560.0,0.28320554]
[1761005301207,0.36261011,110570.0,110560.0,0.28320556]
[1761005301355,0.45472,110570.0,110560.0,0.10230831]
[1761005301781,0.63560088,110570.0,110560.0,0.10230831]
[1761005301934,0.70149573,110570.0,110560.0,0.10230831]
[1761005302782,3.62695503,110570.0,110560.0,0.10230831]
[1761005302982,3.74167503,110570.0,110560.0,0.10230831]
[1761005304015,3.67578018,110570.0,110560.0,0.10230831]
[1761005304502,3.65242448,110570.0,110560.0,0.10230831]
[1761005308377,3.67717579,110570.0,110560.0,0.10230831]
[1761005308497,3.65238448,110570.0,110560.0,0.10230831]
[1761005309157,3.67717579,110570.0,110560.0,0.10230831]
[1761005309824,3.67717579,110570.0,110560.0,0.0673083]
[1761005310224,3.67817579,110570.0,110560.0,0.0673083]
[1761005310624,3.67917579,110570.0,110560.0,0.0673083]
[1761005311026,3.67817579,110570.0,110560.0,0.0673083]
[1761005311529,3.67917579,110570.0,110560.0,0.0673083]
[1761005313363,3.70748809,110570.0,110560.0,0.0673083]
[1761005313704,3.73469856,110570.0,110560.0,0.0673083]
[1761005315128,3.70638626,110570.0,110560.0,0.0673083]
[1761005316818,3.70638626,110570.0,110560.0,0.0273083]
[1761005319179,3.36638626,110570.0,110560.0,0.0273083]
[1761005321141,3.70638626,110570.0,110560.0,0.0273083]
[1761005331138,3.70641456,110570.0,110560.0,0.0273083]
[1761005332361,3.50706661,110570.0,110560.0,0.0273083]
[1761005335355,3.4822753,110570.0,110560.0,0.0273083]
[1761005335946,3.50706661,110570.0,110560.0,0.0273083]
[1761005344410,3.50709078,110570.0,110560.0,0.0273083]
[1761005344611,3.53541134,110570.0,110560.0,0.0273083]
[1761005349531,3.53540639,110570.0,110560.0,0.0273083]
[1761005351087,3.58977639,110570.0,110560.0,0.0273083]
[1761005351301,3.58977639,110570.0,110560.0,0.02573172]
[1761005351942,3.58877639,110570.0,110560.0,0.02573172]
[1761005352842,3.58977639,110570.0,110560.0,0.02573172]
[1761005354492,3.59135316,110570.0,110560.0,0.02573172]
[1761005354902,3.59135316,110570.0,110560.0,0.00073172]
[1761005362467,3.41017557,110570.0,110560.0,0.00073172]
[1761005363995,3.1880137,110570.0,110560.0,0.00073172]
[1761005364211,3.3023737,110570.0,110560.0,0.00073172]
[1761005364639,3.32716501,110570.0,110560.0,0.00073172]
[1761005364971,3.38153501,110570.0,110560.0,0.00073172]
[1761005365325,3.32716501,110570.0,110560.0,0.00073172]
[1761005367927,3.3023737,110570.0,110560.0,0.00073172]
[1761005368541,3.32716501,110570.0,110560.0,0.00073172]
[1761005377579,3.1880137,110570.0,110560.0,0.00073172]
[1761005377731,3.3023737,110570.0,110560.0,0.00073172]
[1761005378587,3.3013737,110570.0,110560.0,0.00073172]
[1761005378891,3.3023737,110570.0,110560.0,0.00073172]
[1761005379423,3.3013737,110570.0,110560.0,0.00073172]
[1761005379924,3.28550258,110570.0,110560.0,0.00073172]
[1761005380146,3.30235625,110570.0,110560.0,0.00073172]
[1761005381960,2.61947446,110550.0,110540.0,0.4424673]
[1761005382085,0.13121367,110550.0,110540.0,0.44251636]
[1761005382486,0.13121367,110550.0,110540.0,0.44320001]
[1761005382752,0.13279031,110550.0,110540.0,0.44320001]
[1761005384766,0.01843031,110550.0,110540.0,0.50651807]
[1761005385262,0.13279031,110550.0,110540.0,0.50651807]
[1761005385667,0.11436,110550.0,110540.0,0.50651807]
[1761005385890,0.02720803,110570.0,110550.0,0.18091361]
[1761005386142,0.066671,110570.0,110560.0,0.18089725]
[1761005386384,0.181031,110570.0,110560.0,0.18089725]
[1761005386620,0.01685286,110570.0,110560.0,0.21707834]
[1761005386973,0.11936,110580.0,110570.0,0.18088088]
[1761005387206,0.13620994,110580.0,110570.0,0.18088088]
[1761005388695,0.13620994,110580.0,110570.0,0.17988088]
[1761005389113,0.005,110580.0,110570.0,0.15088088]
[1761005389333,0.006,110580.0,110570.0,0.15088088]
[1761005390193,0.005,110580.0,110570.0,0.15088088]
[1761005390389,0.005,110580.0,110570.0,0.1876768]
[1761005391915,0.005,110580.0,110570.0,0.15088088]
[1761005395224,0.005,110580.0,110560.0,0.18089002]
[1761005395650,0.005,110580.0,110560.0,0.29521002]
[1761005396064,0.02979131,110580.0,110570.0,0.18088088]
[1761005396687,0.02979131,110580.0,110560.0,0.29521002]
[1761005396903,0.05239937,110580.0,110560.0,0.29521002]
[1761005397134,0.02479131,110570.0,110560.0,0.29521002]
[1761005397539,0.02479131,110570.0,110560.0,0.18089002]
[1761005397757,0.36479131,110570.0,110560.0,0.29521002]
[1761005398301,0.36479131,110570.0,110560.0,0.18089725]
[1761005399605,0.36479131,110570.0,110560.0,0.22944908]
[1761005402033,0.34,110570.0,110560.0,0.22944908]
[1761005410354,0.0065764,110580.0,110570.0,0.18088088]
[1761005410759,0.3465764,110580.0,110570.0,0.29520088]
[1761005410874,0.345,110580.0,110570.0,0.29520088]
[1761005411080,0.345,110580.0,110570.0,0.31238593]
[1761005412921,0.005,110580.0,110570.0,0.31238593]
[1761005414169,0.005,110580.0,110570.0,0.05518505]
[1761005414492,0.005,110580.0,110570.0,0.29516088]
[1761005414493,0.345,110580.0,110570.0,0.29516088]
[1761005415320,0.02185338,110580.0,110570.0,0.29516088]
[1761005415661,0.53144999,110600.0,110580.0,0.18086453]
[1761005415858,0.04739605,110590.0,110580.0,0.18086453]
[1761005416610,0.04739605,110590.0,110580.0,0.22846707]
[1761005416838,0.04744511,110590.0,110580.0,0.22846707]
[1761005417746,0.07117157,110590.0,110580.0,0.22846707]
[1761005418153,0.07117157,110590.0,110580.0,0.19046707]
[1761005418354,0.25201974,110590.0,110580.0,0.04760254]
[1761005418654,0.229415,110590.0,110580.0,0.04760254]
[1761005418865,0.04856683,110590.0,110580.0,0.19895098]
[1761005419029,0.07117157,110590.0,110580.0,0.18086453]
[1761005421360,0.07117157,110590.0,110570.0,0.29516088]
[1761005421591,0.07117157,110590.0,110580.0,0.01808645]
[1761005422757,0.25201974,110590.0,110580.0,0.01808645]
[1761005422916,0.04856683,110590.0,110580.0,0.01808645]
[1761005423114,0.07117157,110590.0,110580.0,0.01808645]
[1761005423285,0.07117157,110590.0,110580.0,0.04941118]
[1761005423692,0.07117157,110590.0,110580.0,0.23027571]
[1761005423903,0.07117157,110590.0,110580.0,0.21218926]
[1761005424786,0.53144994,110600.0,110580.0,0.21218926]
[1761005424787,0.4164147,110600.0,110580.0,0.21218926]
[1761005425482,0.43915849,110600.0,110580.0,0.15618926]
[1761005425663,0.43915849,110600.0,110580.0,0.17427571]
[1761005425854,0.36431995,110600.0,110580.0,0.22121937]
[1761005426051,0.36431995,110600.0,110580.0,0.20313292]
[1761005426491,0.54515177,110600.0,110590.0,0.01808481]
[1761005427670,0.34,110580.0,110570.0,0.30419809]
[1761005427976,0.34,110580.0,110570.0,0.30424715]
[1761005428200,0.34,110580.0,110570.0,0.35852126]
[1761005431160,0.54515183,110600.0,110580.0,0.1808503]
[1761005431366,0.56200447,110600.0,110580.0,0.1808503]
[1761005432131,0.56234604,110600.0,110580.0,0.1808503]
[1761005432374,0.56234604,110600.0,110580.0,0.1518503]
[1761005432569,0.56334604,110600.0,110580.0,0.22108029]
[1761005432817,0.56334604,110600.0,110580.0,0.20299384]
[1761005432961,0.52084817,110590.0,110580.0,0.05114354]
[1761005433160,0.53770081,110590.0,110580.0,0.06922999]
[1761005433364,0.35685264,110590.0,110580.0,0.06922999]
[1761005433802,0.35685264,110590.0,110580.0,0.25009452]
[1761005434009,0.35685264,110590.0,110580.0,0.23200807]
[1761005434388,0.35685264,110590.0,110580.0,0.05114354]
[1761005434577,0.35685264,110590.0,110580.0,0.25009452]
[1761005434794,0.35685264,110590.0,110580.0,0.23700807]
[1761005437086,0.35685264,110590.0,110580.0,0.05614354]
[1761005437305,0.35685264,110590.0,110580.0,0.02308645]
[1761005437714,0.37950843,110590.0,110580.0,0.02308645]
[1761005437884,0.5603566,110590.0,110580.0,0.02308645]
[1761005438421,0.37950843,110590.0,110580.0,0.02308645]
[1761005439405,0.37950843,110590.0,110570.0,0.30531101]
[1761005439569,0.37950843,110590.0,110570.0,0.35483632]
[1761005439771,0.37950843,110590.0,110580.0,0.19895098]
[1761005440010,0.37950843,110590.0,110580.0,0.18086453]
[1761005440654,0.56035776,110590.0,110570.0,0.35483632]
[1761005441438,0.37950843,110590.0,110580.0,0.01808645]
[1761005441774,0.37950843,110590.0,110580.0,0.05049913]
[1761005442071,0.5603566,110590.0,110580.0,0.01808645]
[1761005442833,0.37950843,110590.0,110580.0,0.01808645]
[1761005443435,0.5603566,110590.0,110580.0,0.01808645]
[1761005444053,0.34,110580.0,110570.0,0.35483632]
[1761005445206,0.36466152,110600.0,110580.0,0.18086376]
[1761005445486,0.56235696,110600.0,110580.0,0.18086376]
[1761005445629,0.19769544,110600.0,110580.0,0.23443377]
[1761005446189,0.19927152,110600.0,110580.0,0.05357001]
[1761005446403,0.19927152,110600.0,110580.0,0.25252042]
[1761005446610,0.19927152,110600.0,110580.0,0.22043397]
[1761005446761,0.22385765,110600.0,110580.0,0.22043397]
[1761005447574,0.56385765,110600.0,110580.0,0.22043397]
[1761005448250,0.18084817,110590.0,110580.0,0.03957001]
[1761005448451,0.19771118,110590.0,110580.0,0.05765646]
[1761005449140,0.01686301,110590.0,110580.0,0.23852099]
[1761005449346,0.01686301,110590.0,110580.0,0.22043454]
[1761005449550,0.54699464,110600.0,110580.0,0.22043454]
[1761005449753,0.56385184,110600.0,110580.0,0.22043454]
[1761005449989,0.56285184,110600.0,110580.0,0.22043454]
[1761005450146,0.34,110590.0,110580.0,0.22043454]
[1761005450338,0.3568572,110590.0,110580.0,0.22043454]
[1761005451155,0.3568572,110590.0,110580.0,0.03957001]
[1761005451337,0.3568572,110590.0,110580.0,0.05765646]
[1761005452258,0.53770537,110590.0,110580.0,0.05765646]
[1761005453384,0.0168572,110590.0,110580.0,0.23852099]
[1761005453558,0.0168572,110590.0,110580.0,0.18043454]
[1761005453755,0.0168572,110590.0,110580.0,0.25290419]
[1761005453980,0.0168572,110590.0,110580.0,0.23481774]
[1761005454723,0.01685419,110590.0,110580.0,0.23481774]
[1761005457482,0.01685419,110590.0,110580.0,0.0543832]
[1761005457684,0.01685419,110590.0,110580.0,0.25333418]
[1761005457881,0.01685419,110590.0,110580.0,0.23524773]
[1761005459297,0.5509941,110600.0,110580.0,0.23524773]
[1761005459508,0.56784915,110600.0,110590.0,0.01808481]
[1761005460428,0.34,110580.0,110570.0,0.20912127]
[1761005460617,0.34,110580.0,110570.0,0.19103319]
[1761005460812,0.34,110580.0,110570.0,0.15503319]
[1761005461131,0.34,110580.0,110570.0,0.17312127]
[1761005461938,0.34,110580.0,110570.0,0.18216531]
[1761005462109,0.34,110580.0,110570.0,0.2476037]
[1761005462309,0.34,110580.0,110570.0,0.22951562]
[1761005462757,0.18085285,110590.0,110570.0,0.22951562]
[1761005462994,0.19771317,110590.0,110570.0,0.22951562]
[1761005463230,3.18086453,110580.0,110560.0,0.18089323]
[1761005463404,0.22194035,110580.0,110560.0,0.29509323]
[1761005464186,0.22194035,110580.0,110560.0,0.18089654]
[1761005464538,0.22194035,110580.0,110560.0,0.1142]
[1761005465155,0.18989082,110570.0,110550.0,0.005]
[1761005465379,0.18089725,110560.0,110550.0,0.02309136]
[1761005465536,0.18995686,110580.0,110550.0,0.20400497]
[1761005465712,0.1898818,110570.0,110550.0,0.20503017]
[1761005465907,0.19772237,110570.0,110550.0,0.20503017]
[1761005466715,0.19772237,110570.0,110550.0,0.18693881]
[1761005467788,0.38948202,110560.0,110550.0,0.18693881]
[1761005467966,0.38948202,110560.0,110550.0,0.26129968]
[1761005469007,0.72948202,110570.0,110560.0,0.18088208]
[1761005469239,0.72948202,110570.0,110560.0,0.29512208]
[1761005469240,0.34,110570.0,110560.0,0.29512208]
[1761005470985,0.342006,110580.0,110570.0,0.18088088]
[1761005471320,0.002006,110580.0,110570.0,0.18088088]
[1761005471564,0.39148802,110580.0,110570.0,0.22848118]
[1761005471855,0.73148802,110580.0,110570.0,0.22848118]
[1761005472059,0.7299117,110580.0,110570.0,0.22848118]
[1761005472655,0.34042968,110580.0,110570.0,0.22848118]
[1761005472878,0.34042968,110580.0,110570.0,0.18748118]
[1761005474463,0.34042968,110580.0,110570.0,0.13988088]
[1761005474614,0.34042968,110580.0,110570.0,0.15796896]
[1761005483586,0.34042968,110580.0,110550.0,0.0060252]
[1761005483587,0.34,110570.0,110550.0,0.0060252]
[1761005483794,0.38934241,110560.0,110550.0,0.0060252]
[1761005483997,1.29958207,110560.0,110550.0,0.0060252]
[1761005484199,1.32524441,110560.0,110550.0,0.0060252]
[1761005485881,1.34207759,110560.0,110550.0,0.0060252]
[1761005486298,1.32524441,110560.0,110550.0,0.0060252]
[1761005487546,1.71458682,110560.0,110550.0,0.02411656]
[1761005487750,1.71458682,110560.0,110550.0,0.0060252]
[1761005487751,4.73141257,110560.0,110550.0,0.0060252]
[1761005487904,4.82123158,110560.0,110550.0,0.0060252]
[1761005488108,4.43188917,110560.0,110550.0,0.0060252]
[1761005488532,4.84844324,110560.0,110550.0,0.0060252]
[1761005488950,4.84944324,110560.0,110550.0,0.0060252]
[1761005489504,4.85044324,110560.0,110550.0,0.0060252]
[1761005489725,4.84944324,110560.0,110550.0,0.0060252]
[1761005490122,4.85044324,110560.0,110550.0,0.0060252]
[1761005490673,4.85042711,110560.0,110550.0,0.0060252]
[1761005491420,4.4610847,110560.0,110550.0,0.0060252]
[1761005492169,4.43542236,110560.0,110550.0,0.0060252]
[1761005494144,4.46108894,110560.0,110550.0,0.0060252]
[1761005496555,4.44427932,110560.0,110550.0,0.0060252]
[1761005497242,4.83362173,110560.0,110550.0,0.0060252]
[1761005497619,0.18091361,110550.0,110540.0,0.23451918]
[1761005497842,0.5959226,110550.0,110540.0,0.23451918]
[1761005498348,0.5974992,110550.0,110540.0,0.23451918]
[1761005498519,0.57183262,110550.0,110540.0,0.23451918]
[1761005499205,0.57283262,110550.0,110540.0,0.23451918]
[1761005500866,0.39191901,110550.0,110540.0,0.41544916]
[1761005501904,0.39091901,110550.0,110540.0,0.41544916]
[1761005502662,0.39091901,110550.0,110540.0,0.23451918]
[1761005503082,0.39091901,110550.0,110540.0,0.415791]
[1761005505761,0.39091901,110550.0,110540.0,0.23486102]
[1761005506328,0.57183262,110550.0,110540.0,0.23486102]
[1761005510778,0.57212031,110550.0,110540.0,0.23486102]
[1761005511604,0.3912067,110550.0,110540.0,0.23486102]
[1761005511813,0.57212031,110550.0,110540.0,0.23486102]
[1761005512221,0.58896265,110550.0,110540.0,0.23486102]
[1761005521048,0.40804904,110550.0,110540.0,0.23486102]
[1761005521247,0.01841894,110550.0,110540.0,0.46970021]
[1761005521432,0.74804904,110550.0,110540.0,0.46970021]
[1761005524104,0.74808741,110550.0,110540.0,0.46970021]
[1761005527181,1.13771751,110550.0,110540.0,0.46970021]
[1761005527356,1.31863112,110550.0,110540.0,0.23486102]
[1761005528132,1.3442977,110550.0,110540.0,0.23486102]
[1761005536003,1.13771751,110550.0,110540.0,0.23486102]
[1761005536210,0.35845731,110550.0,110540.0,0.415791]
[1761005536458,1.13771751,110550.0,110540.0,0.29453466]
[1761005536669,1.13771751,110550.0,110540.0,0.47546464]
[1761005536862,1.13771751,110550.0,110540.0,0.415791]
[1761005538967,0.35845731,110550.0,110540.0,0.415791]
[1761005539167,0.74808741,110550.0,110540.0,0.415791]
[1761005539954,0.5900857,110550.0,110540.0,0.415791]
[1761005540156,0.40651081,110550.0,110540.0,0.415791]
[1761005540427,0.40651081,110550.0,110540.0,0.47546464]
[1761005542558,0.79614091,110550.0,110540.0,0.47546464]
[1761005543469,0.74651081,110550.0,110540.0,0.47546464]
[1761005544473,0.74651081,110550.0,110540.0,0.58966464]
[1761005544873,0.34,110550.0,110540.0,0.58966464]
[1761005545074,0.7296301,110550.0,110540.0,0.58966464]
[1761005554546,0.7296301,110550.0,110540.0,0.59466464]
[1761005560279,0.74651359,110550.0,110540.0,0.59466464]
[1761005562323,1.13614369,110550.0,110540.0,0.59466464]
[1761005562934,1.13614369,110550.0,110540.0,0.534991]
[1761005563791,1.16181027,110550.0,110540.0,0.534991]
[1761005565132,1.16181857,110550.0,110540.0,0.534991]
[1761005570770,1.16178581,110550.0,110540.0,0.534991]
[1761005571856,0.74650551,110550.0,110540.0,0.534991]
[1761005572058,0.74650551,110550.0,110540.0,0.60658464]
[1761005572715,1.13611923,110550.0,110540.0,0.60658464]
[1761005573139,0.38255837,110550.0,110540.0,0.60658464]
[1761005573347,0.77217209,110550.0,110540.0,0.60658464]
[1761005579907,0.38255837,110550.0,110540.0,0.60658464]
[1761005580278,0.77217209,110550.0,110540.0,0.60658464]
[1761005581037,0.7552803,110550.0,110540.0,0.60658464]
[1761005582313,1.14489402,110550.0,110540.0,0.60658464]
[1761005586007,31.14489402,110550.0,110540.0,0.60658464]
[1761005587039,30.72961372,110550.0,110540.0,0.49238464]
[1761005587196,31.11922744,110550.0,110540.0,0.49238464]
[1761005588670,30.72961372,110550.0,110540.0,0.49238464]
[1761005588879,31.11922744,110550.0,110540.0,0.49238464]
[1761005593017,31.14275514,110550.0,110540.0,0.49238464]
[1761005593796,31.15965074,110550.0,110540.0,0.49238464]
[1761005595436,31.34056435,110550.0,110540.0,0.23986102]
[1761005596028,31.75863365,110550.0,110540.0,0.23486102]
[1761005596286,34.36901993,110550.0,110540.0,0.23486102]
[1761005597706,34.34056435,110550.0,110540.0,0.23486102]
[1761005598431,34.34156435,110550.0,110540.0,0.23486102]
[1761005599817,34.34314095,110550.0,110540.0,0.23486102]
[1761005604799,34.43295996,110550.0,110540.0,0.23486102]
[1761005605016,34.46017206,110550.0,110540.0,0.23486102]
[1761005605633,34.37035305,110550.0,110540.0,0.23486102]
[1761005612204,34.37021621,110550.0,110540.0,0.23486102]
[1761005614857,34.37018691,110550.0,110540.0,0.23486102]
[1761005617967,30.74891978,110550.0,110540.0,0.415791]
[1761005618146,31.31944711,110550.0,110540.0,0.23486102]
[1761005618344,31.1620612,110550.0,110540.0,0.23486102]
[1761005618519,31.1620612,110550.0,110540.0,0.415791]
[1761005619029,31.1610612,110550.0,110540.0,0.415791]
[1761005619442,31.1610612,110550.0,110540.0,0.23486102]
[1761005620069,31.1610612,110550.0,110540.0,0.415791]
[1761005620271,31.1375335,110550.0,110540.0,0.415791]
[1761005620863,31.1610612,110550.0,110540.0,0.415791]
[1761005621708,31.1610612,110550.0,110540.0,0.23486102]
[1761005622120,31.1610612,110550.0,110540.0,0.415791]
[1761005623524,31.1610612,110550.0,110540.0,0.23486102]
[1761005623730,31.16107618,110550.0,110540.0,0.23486102]
[1761005624223,31.1441949,110550.0,110540.0,0.415791]
[1761005625576,31.16108099,110550.0,110540.0,0.415791]
[1761005628299,30.38961372,110550.0,110540.0,0.58954465]
[1761005628546,30.38961372,110550.0,110540.0,0.61674994]
[1761005632638,30.0,110550.0,110540.0,0.61674994]
[1761005633954,30.0,110550.0,110540.0,0.61774994]
[1761005635172,29.81279604,110550.0,110540.0,0.61774994]
[1761005644859,30.20223166,110550.0,110540.0,0.61774994]
[1761005648846,29.81279604,110550.0,110540.0,0.61774994]
[1761005652351,29.40507783,110550.0,110540.0,0.89195123]
[1761005652519,29.04746248,110550.0,110540.0,0.90195122]
[1761005652663,29.04746248,110550.0,110540.0,0.91195121]
[1761005653040,29.04746248,110550.0,110540.0,0.93831892]
[1761005653760,29.04746248,110550.0,110540.0,0.78911892]
[1761005654142,29.04746248,110550.0,110540.0,0.76375121]
[1761005654343,29.04746248,110550.0,110540.0,0.76275121]
[1761005654679,29.04746248,110550.0,110540.0,0.62967123]
[1761005654906,29.4368981,110550.0,110540.0,0.50366994]
[1761005655130,29.82633372,110550.0,110540.0,0.50091378]
[1761005655330,29.84986142,110550.0,110540.0,0.50000798]
[1761005655705,29.84986142,110550.0,110540.0,0.58680269]
[1761005655959,29.84986142,110550.0,110540.0,0.47280269]
[1761005656151,29.4604258,110550.0,110540.0,0.58680269]
[1761005656328,29.48723396,110550.0,110540.0,0.58680269]
[1761005657684,29.46370626,110550.0,110540.0,0.58680269]
[1761005658924,29.85314188,110550.0,110540.0,0.23219906]
[1761005659128,32.85314188,110550.0,110540.0,0.41312904]
[1761005661221,32.87683367,110550.0,110540.0,0.41212904]
[1761005662632,33.7871829,110550.0,110540.0,0.23119906]
[1761005662837,33.92270577,110550.0,110540.0,0.23119906]
[1761005663034,33.50793752,110550.0,110540.0,0.23119906]
[1761005663280,33.53320593,110550.0,110540.0,0.23119906]
[1761005664149,33.53420593,110550.0,110540.0,0.23119906]
[1761005664684,33.53420593,110550.0,110540.0,0.20819906]
[1761005664846,33.50699059,110550.0,110540.0,0.20819906]
[1761005665053,33.50799059,110550.0,110540.0,0.20819906]
[1761005666275,33.50641397,110550.0,110540.0,0.20819906]
[1761005666476,33.50799066,110550.0,110540.0,0.20819906]
[1761005666680,33.50641397,110550.0,110540.0,0.20819906]
[1761005668109,33.41659496,110550.0,110540.0,0.20819906]
[1761005670536,33.80603058,110550.0,110540.0,0.20819906]
[1761005670742,33.39290317,110550.0,110540.0,0.20819906]
[1761005670983,33.41659496,110550.0,110540.0,0.20819906]
[1761005671907,33.41659496,110550.0,110540.0,0.18819906]
[1761005673448,33.50641397,110550.0,110540.0,0.18819906]
[1761005674328,33.89584959,110550.0,110540.0,0.18819906]
[1761005674508,33.50641397,110550.0,110540.0,0.18819906]
[1761005675356,33.92470577,110550.0,110540.0,0.18819906]
[1761005675582,33.89584959,110550.0,110540.0,0.18819906]
[1761005677712,33.83455717,110550.0,110540.0,0.0097663]
[1761005677959,33.85964056,110550.0,110540.0,0.0097663]
[1761005678168,4.35402934,110540.0,110530.0,0.005]
[1761005678376,4.38964332,110540.0,110500.0,10.3821767]
[1761005678584,0.57538909,110510.0,110500.0,8.63847802]
[1761005678793,2.20210317,110510.0,110500.0,6.83607994]
[1761005678997,2.26067925,110510.0,110500.0,4.78604642]
[1761005679203,2.27236641,110510.0,110500.0,3.25577002]
[1761005679411,2.29205117,110510.0,110500.0,0.04718799]
[1761005679637,0.19104461,110470.0,110460.0,0.28661952]
[1761005679838,0.19104461,110470.0,110460.0,0.25957329]
[1761005679839,4.73541979,110470.0,110460.0,0.25957329]
[1761005680012,4.7620096,110470.0,110460.0,0.23237975]
[1761005680250,3.52106101,110460.0,110450.0,1e-08]
[1761005680452,4.73253314,110460.0,110450.0,4.907e-05]
[1761005680660,4.33641036,110460.0,110450.0,4.907e-05]
[1761005680863,4.23913662,110460.0,110450.0,4.907e-05]
[1761005681048,4.24071409,110460.0,110450.0,4.907e-05]
[1761005682099,4.24171409,110460.0,110450.0,4.907e-05]
[1761005682858,4.24271409,110460.0,110450.0,4.907e-05]
[1761005683894,4.27889637,110460.0,110450.0,4.907e-05]
[1761005684347,4.27889637,110460.0,110450.0,0.00312828]
[1761005685190,4.09649065,110460.0,110450.0,0.00312828]
[1761005685395,4.27755166,110460.0,110450.0,0.00312828]
[1761005686122,3.18107741,110450.0,110440.0,0.31140404]
[1761005686325,3.87371521,110450.0,110440.0,0.31145312]
[1761005686528,3.87371521,110450.0,110440.0,0.31179542]
[1761005687117,4.21371521,110450.0,110440.0,0.31179542]
[1761005687548,4.21471521,110450.0,110440.0,0.31179542]
[1761005688146,4.24275261,110450.0,110440.0,0.31179542]
[1761005689178,4.04447153,110450.0,110440.0,0.31179542]
[1761005689374,4.22554894,110450.0,110440.0,0.31179542]
[1761005689577,4.26173122,110450.0,110440.0,0.31179542]
[1761005689822,0.1811102,110430.0,110420.0,0.32681846]
[1761005690035,4.21753143,110430.0,110420.0,0.32696558]
[1761005692228,3.53593393,110430.0,110420.0,0.32696558]
[1761005692448,4.25371371,110430.0,110420.0,0.32696558]
[1761005692680,4.01595139,110430.0,110420.0,0.32696558]
[1761005693081,4.0175299,110430.0,110420.0,0.31698518]
[1761005693328,4.0175299,110430.0,110420.0,0.24998518]
[1761005694340,3.98134762,110430.0,110420.0,0.24998518]
[1761005694567,4.0185299,110430.0,110420.0,0.24998518]
[1761005694978,4.0175299,110430.0,110420.0,0.24998518]
[1761005695291,4.0185299,110430.0,110420.0,0.24998518]
[1761005695485,4.0185299,110430.0,110420.0,0.25066995]
[1761005696239,4.04534887,110430.0,110420.0,0.25066995]
[1761005696849,4.04377036,110430.0,110420.0,0.25066995]
[1761005697050,4.04277036,110430.0,110420.0,0.25066995]
[1761005697246,4.05177036,110430.0,110420.0,0.25066995]
[1761005697509,4.05277036,110430.0,110420.0,0.25066995]
[1761005697903,3.58536941,110430.0,110420.0,0.25066995]
[1761005698132,4.02920459,110430.0,110420.0,0.25066995]
[1761005698817,4.03078333,110430.0,110420.0,0.25066995]
[1761005699394,4.03178333,110430.0,110420.0,0.25066995]
[1761005699592,3.58794815,110430.0,110420.0,0.25066995]
[1761005700278,3.58794815,110430.0,110420.0,0.22566995]
[1761005700479,3.58694815,110430.0,110420.0,0.22566995]
[1761005700710,4.02978333,110430.0,110420.0,0.22566995]
[1761005700873,4.03078333,110430.0,110420.0,0.22566995]
[1761005701388,4.04739098,110430.0,110420.0,0.22566995]
[1761005701612,4.04498992,110430.0,110420.0,0.22566995]
[1761005702014,3.60115474,110430.0,110420.0,0.22566995]
[1761005702371,3.61777426,110430.0,110420.0,0.22566995]
[1761005702556,3.5415521,110430.0,110420.0,0.22566995]
[1761005702892,3.22497246,110430.0,110420.0,0.22566995]
[1761005703500,3.56497246,110430.0,110420.0,0.22566995]
[1761005703811,3.5415521,110430.0,110420.0,0.22566995]
[1761005704656,3.3604419,110430.0,110420.0,0.22566995]
[1761005704837,2.99723531,110430.0,110420.0,0.40679655]
[1761005705179,3.33723531,110430.0,110420.0,0.22566995]
[1761005706431,3.33623531,110430.0,110420.0,0.22566995]
[1761005706635,3.33465657,110430.0,110420.0,0.40679655]
[1761005707497,3.33465657,110430.0,110420.0,0.34679655]
[1761005707498,3.35139375,110430.0,110420.0,0.34679655]
[1761005708170,0.20811551,110450.0,110420.0,0.34679655]
[1761005708372,3.0,110430.0,110420.0,0.34611178]
[1761005708496,0.34,110430.0,110420.0,0.34611178]
[1761005709531,0.01145023,110440.0,110430.0,0.1811102]
[1761005709735,3.38381168,110450.0,110430.0,0.1811102]
[1761005709935,3.36901953,110450.0,110440.0,0.01810938]
[1761005710148,3.36901953,110450.0,110440.0,0.19920318]
[1761005710489,3.36801953,110450.0,110440.0,0.1810938]
[1761005710617,3.36801953,110450.0,110440.0,0.1800938]
[1761005710823,3.36801953,110450.0,110440.0,0.19820318]
[1761005711040,3.39544854,110450.0,110440.0,0.19820318]
[1761005712296,3.38420329,110450.0,110440.0,0.19820318]
[1761005712503,0.38420329,110450.0,110440.0,0.21970941]
[1761005712836,0.02742901,110450.0,110440.0,0.31684003]
[1761005712975,0.36742901,110450.0,110440.0,0.31684003]
[1761005713174,0.34,110450.0,110440.0,0.31684003]
[1761005713805,0.36335618,110450.0,110440.0,0.31684003]
[1761005714023,0.02335618,110450.0,110440.0,0.31684003]
[1761005714223,0.50106541,110460.0,110450.0,0.18107741]
[1761005714440,3.85782738,110460.0,110450.0,0.18107741]